bitfinex/quotes_BTCUSD_20250129
["timestamp","ask_amount","ask_price","bid_price","bid_amount"]
[1738176680643,0.00128623,102890.0,102880.0,1.23093735]
[1738176682063,0.00128623,102890.0,102880.0,1.20697415]
[1738176682265,0.00128623,102890.0,102880.0,1.18266894]
[1738176682465,0.00128623,102890.0,102880.0,1.20697415]
[1738176682666,0.00128623,102890.0,102880.0,1.17326894]
[1738176682866,0.00128623,102890.0,102880.0,1.18262894]
[1738176683077,0.00128623,102890.0,102880.0,0.97602578]
[1738176683287,0.00128623,102890.0,102880.0,0.98538578]
[1738176683916,0.00128623,102890.0,102880.0,0.97602578]
[1738176684119,0.00128623,102890.0,102880.0,0.98538578]
[1738176684543,0.00128623,102890.0,102880.0,1.08538578]
[1738176685702,0.62711676,102890.0,102880.0,0.48945251]
[1738176685917,0.74747352,102890.0,102880.0,0.36135251]
[1738176686129,0.82866236,102890.0,102880.0,1e-06]
[1738176686335,0.69723779,102890.0,102880.0,1e-06]
[1738176686960,0.70023779,102890.0,102880.0,1e-06]
[1738176687204,0.68684272,102890.0,102880.0,1e-06]
[1738176687417,0.65628169,102890.0,102880.0,1e-06]
[1738176687620,0.02,102880.0,102850.0,0.00029862]
[1738176687832,0.65193516,102870.0,102850.0,0.00029862]
[1738176688030,0.84636716,102870.0,102850.0,0.00029862]
[1738176688270,0.145829,102860.0,102850.0,0.00029862]
[1738176688473,0.24307216,102860.0,102850.0,0.00029862]
[1738176688659,0.09724316,102860.0,102850.0,0.14614162]
[1738176688902,0.02584623,102890.0,102880.0,0.1458]
[1738176689105,0.11408939,102890.0,102880.0,0.1458]
[1738176689841,0.09752939,102890.0,102880.0,0.1458]
[1738176690465,0.09752939,102890.0,102880.0,0.1408]
[1738176691657,0.10052939,102890.0,102880.0,0.1408]
[1738176692422,0.09752939,102890.0,102880.0,0.1408]
[1738176692794,0.00028623,102890.0,102880.0,0.15076]
[1738176693570,0.00028623,102890.0,102880.0,0.1603494]
[1738176694636,0.00028623,102890.0,102880.0,0.3103494]
[1738176694853,0.00028623,102890.0,102880.0,0.4427094]
[1738176696105,0.00028623,102890.0,102880.0,0.4437094]
[1738176696252,0.00028623,102890.0,102880.0,0.4457094]
[1738176696719,2.3e-07,102890.0,102880.0,0.54295256]
[1738176697698,2.3e-07,102890.0,102880.0,0.56242477]
[1738176699221,2.3e-07,102890.0,102880.0,0.56142477]
[1738176699422,2.3e-07,102890.0,102880.0,2.05942477]
[1738176699999,0.00100023,102890.0,102880.0,0.56542477]
[1738176700208,0.00100023,102890.0,102880.0,0.46818161]
[1738176700795,0.00100023,102890.0,102880.0,0.47018161]
[1738176701433,0.00100023,102890.0,102880.0,0.37018161]
[1738176701840,0.00100023,102890.0,102880.0,0.47018161]
[1738176702404,0.00100023,102890.0,102880.0,0.43782161]
[1738176702597,0.00100023,102890.0,102880.0,0.34718161]
[1738176702976,0.00100023,102890.0,102880.0,0.37018161]
[1738176705048,0.09824339,102890.0,102880.0,0.1677494]
[1738176705449,0.09824339,102890.0,102880.0,0.16804802]
[1738176705667,0.09824339,102890.0,102880.0,0.31804802]
[1738176705888,0.09838559,102890.0,102880.0,0.30868802]
[1738176707769,4.3e-07,102890.0,102880.0,2.03574118]
[1738176707972,4.3e-07,102890.0,102880.0,0.69893572]
[1738176709688,4.3e-07,102890.0,102880.0,2.19893572]
[1738176712012,4.3e-07,102890.0,102880.0,0.69893572]
[1738176713697,0.00056573,102900.0,102890.0,0.428746]
[1738176713901,0.00104556,102900.0,102890.0,0.45859054]
[1738176714112,0.00104556,102900.0,102890.0,0.13980454]
[1738176714113,0.08084556,102900.0,102890.0,0.13980454]
[1738176714320,0.30683177,102900.0,102880.0,0.00829862]
[1738176714530,0.24302916,102890.0,102880.0,0.00629862]
[1738176714743,0.24302916,102890.0,102880.0,0.00029862]
[1738176715997,0.09724316,102890.0,102880.0,0.00029862]
[1738176716214,0.24302916,102890.0,102880.0,0.00029862]
[1738176716832,0.24602916,102890.0,102880.0,0.00029862]
[1738176717042,0.24617136,102890.0,102880.0,0.00029862]
[1738176718168,0.24717136,102890.0,102880.0,0.00029862]
[1738176720902,0.10138536,102890.0,102880.0,0.14609862]
[1738176723466,0.0041422,102890.0,102880.0,0.14609862]
[1738176723701,0.0041422,102890.0,102880.0,0.14707052]
[1738176723912,0.0041422,102890.0,102880.0,0.33003052]
[1738176724118,0.0041422,102890.0,102880.0,0.32905862]
[1738176724350,0.0031422,102890.0,102880.0,0.32905862]
[1738176724553,0.0031422,102890.0,102880.0,0.50762561]
[1738176724765,0.0001422,102890.0,102880.0,0.60486877]
[1738176725007,0.0001422,102890.0,102880.0,0.78406877]
[1738176725224,2e-07,102890.0,102880.0,2.59805377]
[1738176725434,0.00086357,102900.0,102890.0,2.03979]
[1738176725641,5.7e-07,102900.0,102890.0,0.61892616]
[1738176725848,5.7e-07,102900.0,102890.0,0.53505615]
[1738176726977,5.7e-07,102900.0,102890.0,0.53705615]
[1738176727881,5.7e-07,102900.0,102890.0,0.54305615]
[1738176727882,0.00100057,102900.0,102890.0,0.54305615]
[1738176728082,0.00100057,102900.0,102890.0,1.92705915]
[1738176728285,0.00114277,102900.0,102890.0,1.92705915]
[1738176728422,0.00114277,102900.0,102890.0,1.90375615]
[1738176728625,0.00114277,102900.0,102890.0,1.85986415]
[1738176729292,0.00114277,102900.0,102890.0,3.35986415]
[1738176729708,7.7e-07,102900.0,102890.0,2.34579415]
[1738176729944,7.7e-07,102900.0,102890.0,1.12898615]
[1738176730144,7.7e-07,102900.0,102890.0,2.62898615]
[1738176730747,7.7e-07,102900.0,102890.0,1.12898615]
[1738176732143,7.7e-07,102900.0,102890.0,1.00598615]
[1738176732344,7.7e-07,102900.0,102890.0,0.98547916]
[1738176732611,7.7e-07,102900.0,102890.0,1.00847916]
[1738176733367,7.7e-07,102900.0,102890.0,0.99911916]
[1738176733587,7.7e-07,102900.0,102890.0,1.00847916]
[1738176734175,0.02177454,102920.0,102910.0,0.328718]
[1738176734950,0.02177454,102920.0,102910.0,0.338078]
[1738176737594,0.02177454,102920.0,102910.0,0.438078]
[1738176737793,0.02177454,102920.0,102910.0,0.441078]
[1738176737997,0.02177454,102920.0,102910.0,0.438078]
[1738176738327,0.02177454,102920.0,102910.0,0.441078]
[1738176739197,0.02177454,102920.0,102910.0,0.442078]
[1738176739613,0.02177454,102920.0,102910.0,0.441078]
[1738176740033,0.02177454,102920.0,102910.0,0.442078]
[1738176740571,0.02177454,102920.0,102910.0,0.44237641]
[1738176740775,0.02177454,102920.0,102910.0,0.45204993]
[1738176741023,0.02191664,102920.0,102910.0,0.44253641]
[1738176741791,0.02191664,102920.0,102910.0,0.43301641]
[1738176742177,0.02191664,102920.0,102910.0,0.45209838]
[1738176742704,0.02191664,102920.0,102910.0,0.44261838]
[1738176743031,0.02191664,102920.0,102910.0,0.45213838]
[1738176744796,0.02191664,102920.0,102910.0,0.47112285]
[1738176745664,0.02191664,102920.0,102910.0,0.46160285]
[1738176745875,0.02191664,102920.0,102910.0,0.40965838]
[1738176746077,0.02191664,102920.0,102910.0,0.42913838]
[1738176746464,0.02191664,102920.0,102910.0,0.45213838]
[1738176748345,0.1191598,102920.0,102910.0,0.40965838]
[1738176749276,0.1191598,102920.0,102910.0,0.25965838]
[1738176749892,0.1191598,102920.0,102910.0,0.23779615]
[1738176754726,0.02191664,102920.0,102910.0,0.27075615]
[1738176756245,0.1191598,102920.0,102910.0,0.23779615]
[1738176758487,0.1191598,102920.0,102910.0,0.23679615]
[1738176758707,0.1191598,102920.0,102910.0,0.23779615]
[1738176758917,0.1191598,102920.0,102910.0,0.23479615]
[1738176759141,0.1191598,102920.0,102910.0,0.23379615]
[1738176760858,0.02191664,102920.0,102910.0,0.23379615]
[1738176764945,0.3434038,102920.0,102910.0,0.00029841]
[1738176765148,0.1976598,102920.0,102910.0,0.14605641]
[1738176765331,0.1191598,102920.0,102910.0,0.14605641]
[1738176765564,0.02191664,102920.0,102910.0,0.15601641]
[1738176765770,0.02191664,102920.0,102910.0,0.15698804]
[1738176765974,0.02191664,102920.0,102910.0,0.15601641]
[1738176767754,0.02191664,102920.0,102910.0,0.15698801]
[1738176768190,0.02191664,102920.0,102910.0,0.30518801]
[1738176768391,0.02191664,102920.0,102910.0,0.30421641]
[1738176770078,0.02191664,102920.0,102910.0,0.29425641]
[1738176770326,0.02191664,102920.0,102910.0,0.30421641]
[1738176770707,0.02205646,102920.0,102910.0,0.30421641]
[1738176771084,0.02205646,102920.0,102910.0,0.48631641]
[1738176771713,0.02205646,102920.0,102910.0,0.30421641]
[1738176772123,0.02205646,102920.0,102910.0,0.40421641]
[1738176774777,0.02205646,102920.0,102910.0,0.29425641]
[1738176775100,0.02205646,102920.0,102910.0,0.30421641]
[1738176775453,0.02205646,102920.0,102910.0,0.30451503]
[1738176784901,0.02205646,102920.0,102910.0,0.40451503]
[1738176785324,0.02205646,102920.0,102910.0,0.30451503]
[1738176789959,0.02205646,102920.0,102910.0,0.29455503]
[1738176790155,0.11929962,102920.0,102910.0,0.14455503]
[1738176790361,0.34804362,102920.0,102910.0,0.14605662]
[1738176790521,0.20229962,102920.0,102910.0,0.14605662]
[1738176791176,0.37715769,102920.0,102910.0,0.00029862]
[1738176792350,0.34804362,102920.0,102910.0,0.00029862]
[1738176792749,0.34904362,102920.0,102910.0,0.00029862]
[1738176793179,0.35204362,102920.0,102910.0,0.00029862]
[1738176794630,0.35204362,102920.0,102910.0,0.14605662]
[1738176794829,0.20629962,102920.0,102910.0,0.14605662]
[1738176795043,0.12329962,102920.0,102910.0,0.14605662]
[1738176795251,0.15239581,102920.0,102910.0,0.14605662]
[1738176796602,0.15239581,102920.0,102910.0,0.37675662]
[1738176796603,0.02605646,102920.0,102910.0,0.37675662]
[1738176797161,0.02605646,102920.0,102910.0,0.38671662]
[1738176799708,0.02505646,102920.0,102910.0,0.38671662]
[1738176799978,0.02205646,102920.0,102910.0,0.38671662]
[1738176800966,0.02205646,102920.0,102910.0,0.41671309]
[1738176801174,0.02205646,102920.0,102910.0,0.38671662]
[1738176801353,0.02205646,102920.0,102910.0,0.45821662]
[1738176801600,0.02205646,102920.0,102910.0,0.48820772]
[1738176801830,0.02205646,102920.0,102910.0,0.49802814]
[1738176802011,0.02205646,102920.0,102910.0,0.49902814]
[1738176802435,0.02205646,102920.0,102910.0,0.46903704]
[1738176802735,0.02205646,102920.0,102910.0,0.50202743]
[1738176803072,0.02205646,102920.0,102910.0,0.47203704]
[1738176803584,0.02205646,102920.0,102910.0,0.44903704]
[1738176803780,0.02205646,102920.0,102910.0,0.55999704]
[1738176803991,0.02205646,102920.0,102910.0,0.58998031]
[1738176804240,0.02205646,102920.0,102910.0,0.58299704]
[1738176805574,0.02205646,102920.0,102910.0,0.6129808]
[1738176805989,0.02205646,102920.0,102910.0,0.71022396]
[1738176811626,0.02205646,102920.0,102910.0,0.6802402]
[1738176812590,0.02205646,102920.0,102910.0,0.7101432]
[1738176814683,7.3e-07,102920.0,102910.0,1.2009532]
[1738176814887,7.3e-07,102920.0,102910.0,1.3527432]
[1738176815342,7.3e-07,102920.0,102910.0,2.3101432]
[1738176815961,7.3e-07,102920.0,102910.0,2.3071432]
[1738176816319,0.00100073,102920.0,102910.0,2.3161432]
[1738176816534,7.3e-07,102920.0,102910.0,2.3151432]
[1738176816752,7.3e-07,102920.0,102910.0,2.3181432]
[1738176817397,7.3e-07,102920.0,102910.0,3.3465832]
[1738176818036,0.00134662,102930.0,102920.0,1.847602]
[1738176818244,0.00134662,102930.0,102920.0,1.76404316]
[1738176818435,0.00134662,102930.0,102920.0,1.70001816]
[1738176818785,0.00134662,102930.0,102920.0,2.93043216]
[1738176819427,0.00134662,102930.0,102920.0,2.89546316]
[1738176819634,0.00134662,102930.0,102920.0,0.67915016]
[1738176819810,0.00134662,102930.0,102920.0,0.79847016]
[1738176820028,0.00134662,102930.0,102920.0,0.80047016]
[1738176820229,0.00134662,102930.0,102920.0,0.77056716]
[1738176820587,0.00134662,102930.0,102920.0,1.60825149]
[1738176821021,0.00134662,102930.0,102920.0,1.49829149]
[1738176821224,0.00134662,102930.0,102920.0,1.60825149]
[1738176822752,0.00134662,102930.0,102920.0,1.62723012]
[1738176823870,0.00134662,102930.0,102920.0,2.16983012]
[1738176824063,0.00134662,102930.0,102920.0,2.05987012]
[1738176824301,0.00134662,102930.0,102920.0,1.49738779]
[1738176824507,0.00134662,102930.0,102920.0,1.62720971]
[1738176824722,6.2e-07,102930.0,102920.0,1.62720971]
[1738176824942,0.0015,102940.0,102930.0,0.800439]
[1738176825147,0.0015,102940.0,102930.0,1.41327408]
[1738176826165,0.0015,102940.0,102930.0,1.41727408]
[1738176826832,0.0015,102940.0,102930.0,1.41427408]
[1738176827213,0.0025,102940.0,102930.0,1.42227408]
[1738176827415,0.0025,102940.0,102930.0,1.42527408]
[1738176828726,0.0022051,102940.0,102930.0,1.42527408]
[1738176828936,0.0022051,102940.0,102930.0,1.42227408]
[1738176829134,0.0022051,102940.0,102930.0,1.42527408]
[1738176830787,1e-07,102940.0,102930.0,1.42527408]
[1738176831034,1e-07,102940.0,102930.0,1.18082508]
[1738176833471,0.0001422,102960.0,102950.0,0.278661]
[1738176833682,0.00028604,102960.0,102950.0,0.60442608]
[1738176834760,0.00028604,102960.0,102950.0,0.57460416]
[1738176835370,0.00028604,102960.0,102950.0,1.13747416]
[1738176835774,0.00028604,102960.0,102950.0,1.13947416]
[1738176837299,0.00028604,102960.0,102950.0,1.12951416]
[1738176837470,0.00028604,102960.0,102950.0,1.13947416]
[1738176837694,0.00028604,102960.0,102950.0,1.23947416]
[1738176839133,0.00028604,102960.0,102950.0,1.25881629]
[1738176839530,0.00028604,102960.0,102950.0,1.26839675]
[1738176841199,4e-08,102960.0,102950.0,1.67617195]
[1738176841405,4e-08,102960.0,102950.0,1.05285675]
[1738176841826,4e-08,102960.0,102950.0,1.15285675]
[1738176842028,4e-08,102960.0,102950.0,1.18171404]
[1738176842654,4e-08,102960.0,102950.0,1.18671404]
[1738176845091,4e-08,102960.0,102950.0,2.68671404]
[1738176845642,4e-08,102960.0,102950.0,1.07735404]
[1738176845850,4e-08,102960.0,102950.0,1.08671404]
[1738176846543,4e-08,102960.0,102950.0,1.08701266]
[1738176846741,0.00014224,102960.0,102950.0,1.07765266]
[1738176846938,0.00014224,102960.0,102950.0,1.05715537]
[1738176847154,0.00014224,102960.0,102950.0,0.95991221]
[1738176849574,0.07534224,102960.0,102950.0,0.81757008]
[1738176850161,0.00014224,102960.0,102950.0,0.84057008]
[1738176850376,0.00014224,102960.0,102950.0,0.97049048]
[1738176850577,0.00014224,102960.0,102950.0,0.93357008]
[1738176850780,0.00014224,102960.0,102950.0,0.93657008]
[1738176851387,0.00014224,102960.0,102950.0,0.83657008]
[1738176854621,0.07404454,102970.0,102960.0,0.295687]
[1738176855908,0.07504454,102970.0,102960.0,0.295687]
[1738176859780,0.07518674,102970.0,102960.0,0.31516327]
[1738176864453,0.1724299,102970.0,102960.0,0.145687]
[1738176865090,0.5123339,102970.0,102950.0,0.54409008]
[1738176865324,0.22894316,102960.0,102950.0,0.00029862]
[1738176865712,0.22894316,102960.0,102950.0,0.19456462]
[1738176865918,0.22894316,102960.0,102950.0,0.19426462]
[1738176866330,0.56888716,102960.0,102940.0,0.54422759]
[1738176866535,0.42320016,102960.0,102940.0,0.01943543]
[1738176866730,0.76415816,102960.0,102940.0,0.34945984]
[1738176867347,0.04722973,102950.0,102940.0,0.34945984]
[1738176867548,0.14447289,102950.0,102940.0,0.49945984]
[1738176868326,0.29017389,102950.0,102940.0,0.30517284]
[1738176868667,0.22777289,102950.0,102940.0,0.29585284]
[1738176868922,0.32624416,102950.0,102940.0,0.00214384]
[1738176869135,0.37374416,102950.0,102940.0,0.00314384]
[1738176869325,0.37374416,102950.0,102940.0,0.00114384]
[1738176869531,0.37374416,102950.0,102940.0,0.00214384]
[1738176869735,0.37374416,102950.0,102940.0,0.00314384]
[1738176869945,0.37374416,102950.0,102940.0,0.00114384]
[1738176870153,0.37774416,102950.0,102940.0,0.00114384]
[1738176870356,0.37774416,102950.0,102940.0,0.00014384]
[1738176870554,0.37874416,102950.0,102940.0,0.00014384]
[1738176871805,0.37874416,102950.0,102940.0,0.00044246]
[1738176875329,0.48738764,102950.0,102940.0,0.00044246]
[1738176875528,0.51038764,102950.0,102940.0,0.00044246]
[1738176875730,0.53038764,102950.0,102940.0,0.00044246]
[1738176876132,0.66038764,102950.0,102940.0,0.00044246]
[1738176876486,0.66038764,102950.0,102930.0,0.00029862]
[1738176876487,0.173,102940.0,102930.0,0.00029862]
[1738176876665,0.75234512,102940.0,102930.0,0.00029862]
[1738176876865,0.64370164,102940.0,102930.0,0.00029862]
[1738176878043,0.66626164,102940.0,102930.0,0.00129862]
[1738176878426,0.70422284,102940.0,102930.0,0.00229862]
[1738176880230,0.72422284,102940.0,102930.0,0.00229862]
[1738176880612,0.59557936,102940.0,102930.0,0.00229862]
[1738176880991,0.72422284,102940.0,102930.0,0.00229862]
[1738176881396,0.70422284,102940.0,102930.0,0.00229862]
[1738176882227,0.67526164,102940.0,102930.0,0.00229862]
[1738176882603,0.43661816,102940.0,102930.0,0.00229862]
[1738176884918,0.40761816,102940.0,102930.0,0.00129862]
[1738176885101,0.43661816,102940.0,102930.0,0.00229862]
[1738176885298,0.43661816,102940.0,102930.0,0.00129862]
[1738176885496,0.44061816,102940.0,102930.0,0.00129862]
[1738176885752,0.15280316,102940.0,102930.0,0.14702862]
[1738176885967,0.12280316,102940.0,102930.0,0.14702862]
[1738176886389,0.02556,102940.0,102930.0,0.31728008]
[1738176886626,0.02556,102940.0,102930.0,0.41630862]
[1738176886848,0.03456,102940.0,102930.0,0.49780862]
[1738176887066,0.018,102940.0,102930.0,0.49780862]
[1738176887272,0.009,102940.0,102930.0,0.49680862]
[1738176887477,0.0001422,102950.0,102940.0,0.15996]
[1738176887683,0.0001422,102950.0,102940.0,0.30664633]
[1738176887868,0.0001422,102950.0,102940.0,0.305675]
[1738176888276,0.0001422,102950.0,102940.0,0.452375]
[1738176888694,0.0011422,102950.0,102940.0,0.527875]
[1738176890627,0.0001422,102950.0,102940.0,0.530875]
[1738176890832,4.22e-05,102950.0,102940.0,0.527875]
[1738176891224,4.22e-05,102950.0,102940.0,0.530875]
[1738176891375,0.00013528,102950.0,102940.0,0.530875]
[1738176891826,0.00013528,102950.0,102940.0,0.62315816]
[1738176892141,0.00013528,102950.0,102940.0,0.530875]
[1738176894263,0.00013528,102950.0,102940.0,0.525915]
[1738176894472,0.00013528,102950.0,102940.0,0.55056638]
[1738176896226,0.00013528,102950.0,102940.0,0.55988638]
[1738176897483,0.00013528,102950.0,102940.0,0.55056638]
[1738176897691,0.00013528,102950.0,102940.0,0.55988638]
[1738176900400,0.00013528,102950.0,102940.0,0.65712954]
[1738176900597,0.00013528,102950.0,102940.0,0.75712954]
[1738176900802,0.00013528,102950.0,102940.0,2.25712954]
[1738176901010,0.00013528,102950.0,102940.0,2.15712954]
[1738176901606,0.00013528,102950.0,102940.0,0.65712954]
[1738176904455,0.00013528,102950.0,102940.0,2.15712954]
[1738176905469,1e-08,102950.0,102940.0,3.15612954]
[1738176905658,1e-08,102950.0,102940.0,2.14780954]
[1738176905816,1e-08,102950.0,102940.0,2.15712954]
[1738176906014,1e-08,102950.0,102940.0,2.15412954]
[1738176906770,1e-08,102950.0,102940.0,2.15712954]
[1738176907236,1e-08,102950.0,102940.0,2.15442816]
[1738176907434,0.00014221,102950.0,102940.0,2.15442816]
[1738176907626,0.00014221,102950.0,102940.0,4.14738416]
[1738176908011,0.00114221,102950.0,102940.0,4.15538416]
[1738176908227,0.00014221,102950.0,102940.0,4.13806416]
[1738176908437,0.00014221,102950.0,102940.0,3.87888916]
[1738176908638,0.00014221,102950.0,102940.0,3.88688916]
[1738176909284,0.00014221,102950.0,102940.0,2.72338816]
[1738176912193,0.00014221,102950.0,102940.0,3.20908816]
[1738176913037,0.0001422,102970.0,102960.0,0.624047]
[1738176913361,0.0001422,102970.0,102960.0,0.72129016]
[1738176913362,0.00019013,102970.0,102960.0,0.72129016]
[1738176913566,0.00019013,102970.0,102960.0,2.72991016]
[1738176914170,0.00019013,102970.0,102960.0,1.23091016]
[1738176914423,1.3e-07,102970.0,102960.0,1.23091016]
[1738176914840,1.3e-07,102970.0,102960.0,2.72991016]
[1738176915274,1.3e-07,102970.0,102960.0,2.73491016]
[1738176915514,1.3e-07,102970.0,102960.0,2.73291016]
[1738176915727,1.3e-07,102970.0,102960.0,1.10991016]
[1738176915951,1.3e-07,102970.0,102960.0,1.12723016]
[1738176916173,1.3e-07,102970.0,102960.0,0.84451016]
[1738176916356,1.3e-07,102970.0,102960.0,0.97703016]
[1738176916793,1.3e-07,102970.0,102960.0,1.12703016]
[1738176917236,1.3e-07,102970.0,102960.0,1.13665208]
[1738176918179,1.3e-07,102970.0,102960.0,1.16650776]
[1738176918620,1.3e-07,102970.0,102960.0,1.18605685]
[1738176918825,1.3e-07,102970.0,102960.0,1.15620117]
[1738176919222,1.3e-07,102970.0,102960.0,1.15649979]
[1738176919580,0.00014233,102970.0,102960.0,1.15649979]
[1738176919869,0.00014233,102970.0,102960.0,1.14717979]
[1738176920070,0.00014233,102970.0,102960.0,1.15649979]
[1738176920357,0.00014233,102970.0,102960.0,1.18641675]
[1738176922713,0.00014233,102970.0,102960.0,1.17709675]
[1738176922912,0.00014233,102970.0,102960.0,1.18641675]
[1738176924176,0.00014233,102970.0,102960.0,1.30941675]
[1738176932543,3.3e-07,102970.0,102960.0,1.48416375]
[1738176932740,3.3e-07,102970.0,102960.0,2.81941675]
[1738176932944,0.0021,102990.0,102980.0,0.475519]
[1738176933152,0.0021,102990.0,102980.0,1.08820912]
[1738176934853,0.0021,102990.0,102980.0,1.11120912]
[1738176935073,0.0021,102990.0,102980.0,1.11520912]
[1738176935074,0.00214793,102990.0,102980.0,1.11520912]
[1738176935292,0.00214793,102990.0,102980.0,0.98724912]
[1738176935497,0.00214793,102990.0,102980.0,0.87762912]
[1738176936006,0.00214793,102990.0,102980.0,0.84771216]
[1738176936343,0.00214793,102990.0,102980.0,0.86566612]
[1738176936549,0.00214793,102990.0,102980.0,0.85634612]
[1738176936753,0.00214793,102990.0,102980.0,0.86566612]
[1738176937494,0.00214793,102990.0,102980.0,0.65910296]
[1738176937694,0.37173609,102990.0,102980.0,0.50848396]
[1738176938593,0.37173609,102990.0,102980.0,0.50748396]
[1738176938795,0.37173609,102990.0,102980.0,0.50348396]
[1738176938974,0.37273609,102990.0,102980.0,0.48553]
[1738176942056,0.22709109,102990.0,102980.0,0.48553]
[1738176942224,0.37273609,102990.0,102980.0,0.48553]
[1738176942795,0.37287829,102990.0,102980.0,0.48553]
[1738176955476,0.39287829,102990.0,102980.0,0.48553]
[1738176956258,0.40264358,102990.0,102980.0,0.48553]
[1738176957212,0.39287829,102990.0,102980.0,0.48553]
[1738176959889,0.37287829,102990.0,102980.0,0.48553]
[1738176960103,0.39287829,102990.0,102980.0,0.48553]
[1738176960298,0.42091829,102990.0,102980.0,0.48553]
[1738176960499,0.145659,102980.0,102970.0,0.00029862]
[1738176960725,0.32390216,102980.0,102970.0,0.00029862]
[1738176961702,0.32990216,102980.0,102970.0,0.00129862]
[1738176965396,0.33982306,102980.0,102970.0,0.00129862]
[1738176965842,0.32990216,102980.0,102970.0,0.00129862]
[1738176967046,0.33004436,102980.0,102970.0,0.00129862]
[1738176977230,0.37808436,102980.0,102970.0,0.00129862]
[1738176977438,0.42778436,102980.0,102970.0,0.00129862]
[1738176977992,0.57778436,102980.0,102970.0,0.00129862]
[1738176979299,0.55274436,102980.0,102970.0,0.00129862]
[1738176979507,0.57274436,102980.0,102970.0,0.00129862]
[1738176980963,0.37974436,102980.0,102970.0,0.00129862]
[1738176981203,0.24904436,102980.0,102970.0,0.00129862]
[1738176981870,0.0061422,102980.0,102970.0,0.14697162]
[1738176982088,0.0061422,102980.0,102970.0,0.22820266]
[1738176982296,0.0061422,102980.0,102970.0,0.22723162]
[1738176983014,0.0001422,102980.0,102970.0,0.22723162]
[1738176983219,0.0021422,102980.0,102970.0,0.22723162]
[1738176983433,0.0021422,102980.0,102970.0,0.22623162]
[1738176983854,0.0031422,102980.0,102970.0,0.22623162]
[1738176984068,0.0031422,102980.0,102970.0,0.32623162]
[1738176984488,0.0031422,102980.0,102970.0,0.37503162]
[1738176986978,0.0031422,102980.0,102970.0,0.38476685]
[1738176992951,0.0031422,102980.0,102970.0,0.53476685]
[1738176993577,0.0001422,102980.0,102970.0,0.53476685]
[1738176993775,0.0011422,102980.0,102970.0,0.53476685]
[1738176993979,0.0021422,102980.0,102970.0,0.53476685]
[1738176994213,0.0011422,102980.0,102970.0,0.53476685]
[1738176994432,0.0001422,102980.0,102970.0,0.53476685]
[1738176994635,0.0001422,102980.0,102970.0,0.53576685]
[1738176995725,0.0001422,102980.0,102970.0,0.56438492]
[1738176996569,0.0001422,102980.0,102970.0,0.54298164]
[1738176996782,0.0001422,102980.0,102970.0,0.53284855]
[1738176997166,0.0001422,102980.0,102970.0,0.52264255]
[1738176997389,0.0001422,102980.0,102970.0,0.5640863]
[1738177000468,0.0001422,102980.0,102970.0,0.53546823]
[1738177003250,0.0001422,102980.0,102970.0,0.53576685]
[1738177008244,0.0001422,102980.0,102970.0,0.63301001]
[1738177008481,0.0001422,102980.0,102970.0,0.53576685]
[1738177012044,0.0001422,102980.0,102970.0,0.73301001]
[1738177012264,0.0001422,102980.0,102970.0,0.78579426]
[1738177012395,1e-08,102980.0,102970.0,2.28579426]
[1738177013319,1e-08,102980.0,102970.0,2.28779426]
[1738177013510,1e-08,102980.0,102970.0,2.26479426]
[1738177013710,1e-08,102980.0,102970.0,2.26379426]
[1738177014121,1e-08,102980.0,102970.0,2.27079426]
[1738177014332,1e-08,102980.0,102970.0,2.30379426]
[1738177014761,1e-08,102980.0,102970.0,2.78934426]
[1738177015597,1e-08,102980.0,102970.0,1.28934426]
[1738177016247,1e-08,102980.0,102970.0,2.78934426]
[1738177017786,1e-08,102980.0,102970.0,1.28934426]
[1738177018747,1e-08,102980.0,102970.0,1.26562426]
[1738177018958,1e-08,102980.0,102970.0,1.16562426]
[1738177019173,1e-08,102980.0,102970.0,1.15138426]
[1738177019379,1e-08,102980.0,102970.0,1.03859685]
[1738177019675,1e-08,102980.0,102970.0,1.02931685]
[1738177019899,1e-08,102980.0,102970.0,1.03859685]
[1738177020549,1e-08,102980.0,102970.0,0.94905685]
[1738177020777,1e-08,102980.0,102970.0,0.91449685]
[1738177021156,1e-08,102980.0,102970.0,0.90521685]
[1738177021359,1e-08,102980.0,102970.0,0.91449685]
[1738177022940,1e-08,102980.0,102970.0,0.90521685]
[1738177023178,1e-08,102980.0,102970.0,0.91449685]
[1738177027345,1e-08,102980.0,102970.0,0.90521685]
[1738177027563,1e-08,102980.0,102970.0,0.81449685]
[1738177027766,1e-08,102980.0,102970.0,0.50458385]
[1738177027767,0.14565901,102980.0,102970.0,0.50458385]
[1738177028008,0.04770001,102980.0,102970.0,0.65521685]
[1738177028662,0.04770001,102980.0,102970.0,0.65321685]
[1738177028870,0.04770001,102980.0,102970.0,0.64721685]
[1738177029956,0.04770001,102980.0,102970.0,0.50154385]
[1738177030165,0.29060217,102980.0,102970.0,0.48684862]
[1738177030368,0.36650217,102980.0,102970.0,0.49184862]
[1738177033666,0.36650217,102980.0,102970.0,0.48684862]
[1738177033917,0.36650217,102980.0,102970.0,0.48784862]
[1738177034326,0.36650217,102980.0,102970.0,0.48684862]
[1738177035174,0.36650217,102980.0,102970.0,0.48584862]
[1738177035377,0.36750217,102980.0,102970.0,0.48584862]
[1738177035589,0.36850217,102980.0,102970.0,0.48584862]
[1738177035859,0.38850217,102980.0,102970.0,0.00029862]
[1738177036497,0.36850217,102980.0,102970.0,0.00029862]
[1738177036922,0.38850217,102980.0,102970.0,0.00029862]
[1738177037587,0.39354217,102980.0,102970.0,0.00029862]
[1738177038153,0.38850217,102980.0,102970.0,0.00029862]
[1738177039390,0.3983681,102980.0,102970.0,0.00029862]
[1738177039985,0.3783681,102980.0,102970.0,0.00029862]
[1738177040214,0.3983681,102980.0,102970.0,0.00029862]
[1738177041176,0.3783681,102980.0,102970.0,0.00029862]
[1738177042339,0.3983681,102980.0,102970.0,0.00029862]
[1738177043654,0.4034081,102980.0,102970.0,0.00029862]
[1738177043861,0.4024081,102980.0,102970.0,0.00029862]
[1738177044073,0.3973681,102980.0,102970.0,0.00029862]
[1738177044296,0.4189281,102980.0,102970.0,0.00029862]
[1738177044718,0.4189281,102980.0,102970.0,0.00129862]
[1738177044719,0.4209281,102980.0,102970.0,0.00129862]
[1738177044937,0.4209281,102980.0,102970.0,0.00029862]
[1738177044938,0.4129281,102980.0,102970.0,0.00029862]
[1738177045152,0.3929281,102980.0,102970.0,0.00129862]
[1738177045355,0.4239281,102980.0,102970.0,0.00229862]
[1738177045588,0.4219281,102980.0,102970.0,0.00129862]
[1738177045798,0.4129281,102980.0,102970.0,0.00129862]
[1738177046001,0.4149281,102980.0,102970.0,0.00129862]
[1738177046250,0.3949281,102980.0,102970.0,0.00129862]
[1738177046458,0.4149281,102980.0,102970.0,0.00129862]
[1738177046686,0.3983681,102980.0,102970.0,0.00129862]
[1738177046923,0.3783681,102980.0,102970.0,0.00129862]
[1738177047198,0.3983681,102980.0,102970.0,0.00129862]
[1738177047414,0.4043681,102980.0,102970.0,0.00129862]
[1738177047645,0.3843681,102980.0,102970.0,0.00129862]
[1738177048578,0.4043681,102980.0,102970.0,0.00129862]
[1738177049508,0.4094081,102980.0,102970.0,0.00129862]